[Event "3rd Rio Open 2024"]
[Site "Rio de Janeiro"]
[Date "2024.04.28"]
[Round "9.1"]
[White "De Siqueira, Luigy Lira"]
[Black "Fier, Alexandr"]
[Result "0-1"]
[ECO "B77"]
[WhiteElo "2274"]
[BlackElo "2566"]
[Annotator "TA"]
[PlyCount "70"]
[EventDate "2024.04.12"]
[EventType "swiss"]
[EventCountry "BRA"]
[SourceTitle "playchess.com"]
[Source "ChessBase"]
[SourceQuality "1"]
[TimeControl "5400+30"]

{[%evp 19,69,20,45,0,0,0,0,0,0,0,0,-80,-75,-149,-165,-185,-133,-158,0,0,0,0,0,0,0,0,201,218,196,47,63,0,0,0,0,-6279,-5553,-29958,-29961,-29966,-29969,-29981,-29982,-29982,-29983,-29983,-29984,-29984,-29985,-29997,-29998,-29999]} 1. e4 {[%emt 0:00:23]} c5 {[%emt 0:00:04]} 2. Nf3 {[%emt 0:00:22]} g6 {[%emt 0:00:03]} 3. Nc3 {[%emt 0:01:08]} Bg7 {[%emt 0:00:14]} 4. d4 {[%emt 0:00:14]} cxd4 {[%emt 0:00:04]} 5. Nxd4 {[%emt 0:00:11]} Nc6 {[%emt 0:00:03]} 6. Be3 {[%emt 0:00:44]} Nf6 {[%emt 0:00:04]} 7. Bc4 {[%emt 0:00:14]} O-O {[%emt 0:00:04]} 8. Bb3 {[%emt 0:00:14]} d6 {[%emt 0:00:05]} 9. f3 {[%emt 0:00:11]} Bd7 {[%emt 0:00:03]} 10. Qd2 {[%emt 0:00:09]} Na5 {[%emt 0:00:04]} 11. Bh6 {[%emt 0:02:23]} Nxb3 {[%emt 0:03:48]} 12. axb3 {[%emt 0:00:39]} Bxh6 {[%emt 0:00:06]} 13. Qxh6 {[%emt 0:00:08] The position is equal.} e5 {[%emt 0:00:06]} 14. Nde2 {[%emt 0:01:02]} b5 {[%emt 0:00:12]} 15. O-O-O {[%emt 0:06:37]} (15. Qd2 $11 {remains equal.}) 15... b4 $17 {[%emt 0:00:08]} 16. Nd5 {[%emt 0:01:52]} ({White should play} 16. Na4) 16... Nxd5 {[%emt 0:00:11]} 17. Rxd5 {[%emt 0:00:14]} Be6 {[%emt 0:00:02]} (17... a5 $19 {Strongly threatening ...a4.} 18. Kd2 (18. Rxd6 $2 a4 $19) 18... a4 19. bxa4 Rxa4) 18. Rd3 {[%emt 0:00:30]} a5 $2 {[%emt 0:00:05]} ({Black should try} 18... Qc7 $1 $17 {aiming for ...Rfc8.} 19. Kd2 f5) 19. f4 $1 $11 {[%emt 0:25:24]} exf4 {[%emt 0:14:06]} 20. Nxf4 {[%emt 0:11:12][%cal Of4h5]} Qc7 {[%emt 0:04:56] ...a4 is the strong threat.} 21. Rf1 $1 {[%emt 0:11:01][%cal Od3h3]} Rac8 {[%emt 0:11:10][%csl Gc8][%cal Rc7c2]} 22. Rf2 {[%emt 0:01:36]} Qc5 $2 {[%emt 0:02:07] Repels g4} (22... Qa7 $11 {and Black stays safe.} 23. Rdf3 (23. Nxe6 fxe6 24. Rxf8+ Rxf8 $17) 23... Bxb3 24. Nxg6 hxg6) 23. Rdf3 $18 {[%emt 0:02:13] Nxe6 would now be deadly.} d5 {[%emt 0:11:28] [#]} (23... Bxb3 $2 24. Rh3 $18) 24. Nxd5 {[%emt 0:19:42]} (24. Nh5 $1 $18 gxh5 25. Rg3+ (25. Qg5+ Kh8 $18) 25... Bg4 26. Qxh5 (26. Qg5+ Kh8 $11)) 24... f5 $1 $14 {[%emt 0:02:34]} (24... Bxd5 25. Rh3 (25. exd5 Rce8 $11) 25... Rfe8 (25... Qxf2 26. Qxh7#) 26. Qxh7+ Kf8 27. Qh8+ Ke7 28. Qe5+ Kd8 (28... Be6 29. Rxf7+ Kd8 30. Rd3+) 29. Qxd5+ Qxd5 30. exd5 $11) 25. Nf4 {[%emt 0:03:21]} (25. Qd2 $1 $14) 25... Bxb3 $1 $40 {[%emt 0:01:31][%mdl 128] Black is up to no good.} 26. Nxg6 $1 {[%emt 0:02:17]} (26. Nd3 Qc6 27. Ne5 Qa4 $19 (27... Qxe4 $2 28. Nd3 $19)) 26... Bxc2 {[%emt 0:03:18]} ({And not} 26... hxg6 27. Qxg6+ Kh8 28. Rh3#) (26... Rfd8 $5 27. Ne7+ $8 (27. Rxf5 Qxc2+ 28. Rxc2 Rxc2+ 29. Kb1 Rd1+) 27... Qxe7 28. Rxb3 a4 29. Rxb4 (29. Rg3+ Kh8 $15) 29... Qxb4 30. Qg5+ Kh8 31. Qf6+ Kg8 32. Qg5+ Kf8 33. Qxf5+ (33. Rxf5+ Ke8 $11) 33... Kg7 34. Qe5+ (34. Qf6+ Kg8 $11) 34... Kg8 35. Qg5+ Kh8 36. Qe5+ Kg8 37. Qg3+ Kh8 38. Qe5+ Kg8 $11) 27. Ne7+ $2 {[%emt 0:07:44][%mdl 8192]} Qxe7 $19 {[%emt 0:00:05]} 28. Rxc2 {[%emt 0:00:07]} Rxc2+ {[%emt 0:00:54] Black mates.} 29. Kxc2 {[%emt 0:00:02]} Qxe4+ {[%emt 0:00:09] KQR-KQR} 30. Kb3 {[%emt 0:00:13] [#]} a4+ $1 {[%emt 0:02:09][%mdl 512]} 31. Ka2 {[%emt 0:01:30]} b3+ {[%emt 0:01:20]} 32. Ka3 {[%emt 0:00:08] [#]} Qe7+ $1 {[%emt 0:00:03]} 33. Kxa4 {[%emt 0:00:10]} Rb8 {[%emt 0:00:21][%csl Gb8][%cal Re7b4]} 34. Qd2 {[%emt 0:01:43]} Qe4+ {[%emt 0:00:04]} 35. Ka5 {[%emt 0:00:35]} Qa8# {[%emt 0:00:04] Never resign too early!   Weighted Error Value: White=0.63/Black=0.20 (precise) .  Loses game:     	White=1     	Black=1      Mistake:       	White=4     	Black=2      Inaccurate:     	White=1     	---        OK:         	White=3     	Black=6      Best:        	White=1     	Black=4      Strong:       	White=3     	Black=2} 0-1

[Event "3rd Rio Open 2024"]
[Site "Rio de Janeiro"]
[Date "2024.04.28"]
[Round "9.2"]
[White "Matsuura, Everaldo"]
[Black "Marra, Eduardo da Costa"]
[Result "1/2-1/2"]
[ECO "C78"]
[WhiteElo "2380"]
[BlackElo "2184"]
[Annotator "TA"]
[PlyCount "57"]
[EventDate "2024.04.12"]
[EventType "swiss"]
[EventCountry "BRA"]
[SourceTitle "playchess.com"]
[Source "ChessBase"]
[SourceQuality "1"]
[TimeControl "5400+30"]

{[%evp 24,57,27,29,29,-14,0,0,0,0,0,0,0,0,0,0,0,-12,0,0,0,0,0,0,0,0,0,0,0,0,363,349,306,187,320,181]} 1. e4 {[%emt 0:00:38]} e5 {[%emt 0:00:05]} 2. Nf3 {[%emt 0:00:23]} Nc6 {[%emt 0:00:01]} 3. Bb5 {[%emt 0:00:17][%cal Bf1b5,Bb5a4,Ba4b3][%mdl 32]} a6 {[%emt 0:00:05]} 4. Ba4 {[%emt 0:00:19]} Nf6 {[%emt 0:00:02]} 5. O-O {[%emt 0:00:23]} b5 {[%emt 0:00:03]} 6. Bb3 {[%emt 0:00:28]} Bc5 {[%emt 0:00:03]} 7. c3 {[%emt 0:01:22]} d6 {[%emt 0:02:25]} 8. d4 {[%emt 0:00:59]} Bb6 {[%emt 0:00:21]} 9. h3 {[%emt 0:02:07]} O-O {[%emt 0:01:02]} 10. Be3 {[%emt 0:02:38]} h6 {[%emt 0:03:03]} 11. Re1 {[%emt 0:15:51]} Re8 {[%emt 0:04:49]} 12. Nbd2 {[%emt 0:06:21]} Bb7 {[%emt 0:04:58]} 13. d5 {[%emt 0:04:51]} Ne7 {[%emt 0:00:54]} 14. a4 {[%emt 0:03:53]} c6 {[%emt 0:29:54]} 15. dxc6 {[%emt 0:06:30]} Bxc6 {[%emt 0:02:55] The position is equal.} 16. axb5 {[%emt 0:02:38]} axb5 {[%emt 0:01:15]} 17. Rxa8 {[%emt 0:01:31]} Bxa8 {[%emt 0:00:22]} 18. Qe2 {[%emt 0:03:49]} Bc6 {[%emt 0:04:52]} 19. Ra1 {[%emt 0:06:33]} Qc7 {[%emt 0:01:20]} 20. Bc2 {[%emt 0:04:08]} Bxe3 {[%emt 0:06:28]} 21. Qxe3 {[%emt 0:00:12]} Ra8 {[%emt 0:00:55]} 22. Rxa8+ {[%emt 0:08:00]} Bxa8 {[%emt 0:00:05]} 23. Qd3 {[%emt 0:06:25]} Bc6 {[%emt 0:06:17]} 24. Nh2 {[%emt 0:05:04]} d5 {[%emt 0:30:16]} 25. exd5 {[%emt 0:17:40]} Nexd5 {[%emt 0:00:30] [#] ...Nf4 is the strong threat.} 26. Ne4 {[%emt 0:00:30]} Nf4 $2 {[%mdl 8192]} (26... Nd7 $11 {and Black has nothing to worry.}) 27. Nxf6+ $18 gxf6 28. Qh7+ {[%emt 0:01:00]} Kf8 29. Qxh6+ {[%emt 0:00:30] Weighted Error Value: White=0.04 (flawless) /Black=0.63.  Loses game:     	---       	Black=1      Mistake:       	White=1     	---        Inaccurate:     	White=1     	Black=1      OK:         	White=8     	Black=2      Best:        	White=1     	---} (29. Ng4 $142 Ke7 30. Nxh6 (30. Qxh6 Qd6 $18)) 1/2-1/2

[Event "3rd Rio Open 2024"]
[Site "Rio de Janeiro"]
[Date "2024.04.29"]
[Round "9.3"]
[White "Labussiere, Yago"]
[Black "Librelato, Kathie Goulart"]
[Result "1/2-1/2"]
[ECO "A13"]
[WhiteElo "2184"]
[BlackElo "2165"]
[Annotator "TA"]
[PlyCount "169"]
[EventDate "2024.04.12"]
[EventType "swiss"]
[EventCountry "BRA"]
[SourceTitle "playchess.com"]
[Source "ChessBase"]
[SourceQuality "1"]
[TimeControl "5400+30"]

{[%evp 66,168,11,0,0,0,0,0,35,35,136,136,191,191,191,191,239,221,590,184,1385,1365,2220,2141,2215,2381,2406,883,2284,1943,1900,984,1797,1494,1872,495,446,88,88,88,88,88,88,88,88,88,88,88,88,88,88,88,126,88,88,29,88,8,29,8,29,44,88,88,88,8,8,0,89,89,89,89,89,12,88,88,88,88,88,0,88,8,8,8,8,8,8,8,8,8,8,8,8,0,0,0,0,0,0,0,0,0,0,0,0]} 1. c4 {[%emt 0:01:09]} e6 {[%emt 0:00:10]} 2. g3 {[%emt 0:00:14]} d5 {[%emt 0:00:11]} 3. Bg2 {[%emt 0:00:14]} Nf6 {[%emt 0:01:03]} 4. Nf3 {[%emt 0:00:10]} dxc4 {[%emt 0:00:13]} 5. Qa4+ {[%emt 0:00:36]} Bd7 {[%emt 0:00:12]} 6. Qxc4 {[%emt 0:00:05]} c5 {[%emt 0:00:06]} 7. Ne5 {[%emt 0:02:18]} Qc8 {[%emt 0:00:11]} 8. Qd3 {[%emt 0:03:24]} Nc6 {[%emt 0:03:13]} 9. Nxd7 {[%emt 0:00:13]} Nxd7 {[%emt 0:00:08]} 10. Nc3 {[%emt 0:01:47]} Be7 {[%emt 0:03:30]} 11. b3 {[%emt 0:02:28]} O-O {[%emt 0:01:31]} 12. Bb2 {[%emt 0:00:26]} Rd8 {[%emt 0:05:52]} 13. Rc1 {[%emt 0:03:16]} Nf6 {[%emt 0:02:04]} 14. Qb1 {[%emt 0:00:15]} Qd7 {[%emt 0:01:26]} 15. d3 {[%emt 0:00:17]} Rac8 {[%emt 0:00:36]} 16. O-O {[%emt 0:00:47]} b6 {[%emt 0:06:24]} 17. Rfd1 {[%emt 0:01:25]} h6 {[%emt 0:14:44]} 18. e3 {[%emt 0:03:45]} a6 {[%emt 0:06:02]} 19. Ne2 {[%emt 0:04:42]} b5 {[%emt 0:06:11]} 20. Bxf6 {[%emt 0:25:41]} gxf6 {[%emt 0:00:25]} 21. d4 {[%emt 0:00:21]} cxd4 {[%emt 0:16:29]} 22. Bxc6 {[%emt 0:11:17]} Rxc6 {[%emt 0:00:14]} 23. Rxd4 {[%emt 0:01:04]} Rd6 {[%emt 0:08:39]} 24. Rcd1 {[%emt 0:15:15]} Rxd4 {[%emt 0:03:58]} 25. Rxd4 {[%emt 0:03:21]} Qc7 {[%emt 0:00:27]} 26. Rxd8+ {[%emt 0:04:33]} Qxd8 {[%emt 0:00:07]} 27. Qc2 {[%emt 0:00:43]} Qd5 {[%emt 0:04:07]} 28. Nf4 {[%emt 0:03:59]} Qc5 {[%emt 0:00:20]} 29. Qxc5 {[%emt 0:01:10]} Bxc5 {[%emt 0:00:05]} 30. Nd3 {[%emt 0:00:25]} Bd6 {[%emt 0:01:25]} 31. e4 Kg7 {[%emt 0:00:30]} 32. Kg2 Kg6 {[%emt 0:00:30]} 33. f4 f5 {[%emt 0:00:30]} 34. e5 Be7 {[%emt 0:00:30]} 35. Kf3 h5 {[%emt 0:00:30]} 36. h3 h4 {[%emt 0:00:30]} 37. g4 fxg4+ {[%emt 0:00:30]} (37... f6 $1 $14) 38. hxg4 $16 f5 {[%emt 0:00:30]} (38... a5 $16 39. Kg2 a4) 39. exf6 $18 Kxf6 {[%emt 0:00:30]} 40. Kg2 $1 Kg6 {[%emt 0:00:30]} (40... Kg7 $142 41. Ne5 Kh6) 41. Kh3 $18 a5 $2 {[%emt 0:00:30]} (41... Kh6 {is more resistant.} 42. Ne5 b4) 42. Ne5+ $18 Kh6 $2 {[%emt 0:00:30]} (42... Kg7 43. g5 a4 44. Kxh4 Bd6) 43. a4 $18 bxa4 {[%emt 0:00:30]} 44. bxa4 Kg7 {[%emt 0:00:30]} 45. g5 Bb4 {[%emt 0:00:30]} 46. Kxh4 Bd2 {[%emt 0:00:30]} 47. Kg4 Bc3 {[%emt 0:00:30]} 48. Kf3 Bb4 {[%emt 0:00:30]} 49. Ke4 Bd2 {[%emt 0:00:30]} 50. Nc4 (50. Nc6 $142 Kf7 51. Ke5 Bc3+ 52. Kd6 Bb4+ 53. Kd7 (53. Nxb4 axb4 54. a5 b3 $11)) 50... Bc3 $18 {[%emt 0:00:30]} 51. f5 $2 (51. Ke3 $18 {is more deadly.} Bb4 52. Ke4) 51... exf5+ $16 {[%emt 0:00:30]} 52. Kxf5 Bb4 {[%emt 0:00:30]} 53. Ne5 Bc3 {[%emt 0:00:30]} 54. Nd3 Bd2 {[%emt 0:00:30]} 55. Nc5 Bc3 {[%emt 0:00:30]} 56. Ne6+ Kf7 {[%emt 0:00:30]} 57. g6+ Ke7 {[%emt 0:00:30]} 58. Nc5 Bg7 {[%emt 0:00:30]} 59. Ne4 Bd4 {[%emt 0:00:30]} 60. Ng5 (60. Nd2 $16) 60... Bc3 {[%emt 0:00:30]} (60... Bg7 $11) 61. Ne6 ({White should try} 61. Nf3 $16) 61... Bb2 $11 {[%emt 0:00:30]} 62. Nf4 Bg7 {[%emt 0:00:30]} 63. Nh5 Bc3 {[%emt 0:00:30]} 64. Ke4 Bb4 {[%emt 0:00:30]} 65. Nf4 (65. Kf3 $16) 65... Bd2 $1 $11 {[%emt 0:00:30]} 66. Nh5 (66. Nd5+ $11 Ke6 67. Kd4) 66... Bb4 $1 $16 {[%emt 0:00:30]} 67. Ke5 Bc3+ {[%emt 0:00:30]} 68. Kd5 Bd2 {[%emt 0:00:30]} 69. Ng3 (69. Kc5 $16) 69... Be1 {[%emt 0:00:30] [#]} (69... Bc1 $1 $11 {remains equal.}) 70. Ne4 $1 $16 Bb4 {[%emt 0:00:30]} 71. Ke5 Be1 {[%emt 0:00:30]} 72. Kd5 Bb4 $1 {[%emt 0:00:30] [#]} 73. Kc6 (73. Kd4 $1 $16) 73... Be1 $11 {[%emt 0:00:30]} 74. Kb5 Bb4 {[%emt 0:00:30]} 75. Nc5 (75. g7 $5 Kf7 $8 76. Nc5 $11) 75... Kf6 {[%emt 0:00:30]} 76. Nb7 Kxg6 {[%emt 0:00:30]} 77. Nxa5 Be1 {[%emt 0:00:30]} 78. Nc6 Kf6 {[%emt 0:00:30]} 79. Nb4 Bxb4 {[%emt 0:00:30]} 80. Kxb4 Ke6 {[%emt 0:00:30]} 81. Kc5 Kd7 {[%emt 0:00:30]} 82. Kb6 Kc8 {[%emt 0:00:30]} 83. a5 Kb8 {[%emt 0:00:30]} 84. a6 Ka8 {[%emt 0:00:30]} 85. a7 1/2-1/2

[Event "3rd Rio Open 2024"]
[Site "Rio de Janeiro"]
[Date "2024.04.29"]
[Round "9.4"]
[White "Lima, Stefan Moisei VIeira"]
[Black "Rangel, Daniel"]
[Result "1/2-1/2"]
[ECO "A45"]
[WhiteElo "2176"]
[BlackElo "2160"]
[Annotator "TA"]
[PlyCount "105"]
[EventDate "2024.04.12"]
[EventType "swiss"]
[EventCountry "BRA"]
[SourceTitle "playchess.com"]
[Source "ChessBase"]
[SourceQuality "1"]
[TimeControl "5400+30"]

{[%evp 9,105,3,8,2,4,0,8,2,8,-2,33,26,38,37,46,44,61,46,56,59,86,72,75,86,81,82,87,85,91,90,82,72,75,73,81,53,48,54,62,60,56,60,83,86,78,78,82,51,52,48,44,44,52,51,51,15,11,2,8,0,0,0,0,0,0,0,0,0,0,0,0,3,4,0,0,0,0,0,0,0,28,28,31,31,54,0,0,0,0,-8,-8,-8,-8,-8,0,0,0,-2]} 1. d4 {[%emt 0:00:05]} Nf6 {[%emt 0:00:06]} 2. Bg5 {[%emt 0:00:06]} g6 {[%emt 0:00:33]} 3. Bxf6 {[%emt 0:00:11]} exf6 {[%emt 0:00:02]} 4. c4 {[%emt 0:00:09]} d5 {[%emt 0:03:08]} 5. cxd5 {[%emt 0:03:10]} Qxd5 {[%emt 0:01:41]} 6. Nc3 {[%emt 0:00:12]} Qd8 {[%emt 0:00:19]} 7. e3 {[%emt 0:12:51]} Bd6 {[%emt 0:00:15]} 8. Bc4 {[%emt 0:02:11]} O-O {[%emt 0:00:17]} 9. Nf3 {[%emt 0:00:28]} c5 {[%emt 0:07:27]} 10. dxc5 {[%emt 0:01:34]} Bxc5 {[%emt 0:00:20]} 11. O-O {[%emt 0:00:17]} Qxd1 {[%emt 0:08:02]} 12. Rfxd1 {[%emt 0:00:34]} Nc6 {[%emt 0:00:26]} 13. Nd5 {[%emt 0:09:06][%cal Oa1c1] White is more active.} Kg7 {[%emt 0:09:29]} 14. Rac1 {[%emt 0:02:48]} b6 {[%emt 0:05:31]} 15. a3 {[%emt 0:09:15]} a5 {[%emt 0:03:59] [#]} 16. Nxb6 $1 {[%emt 0:04:18]} Bxb6 {[%emt 0:00:27]} 17. Bd5 {[%emt 0:00:46][%cal Bc4d5,Bd5c6,Bc6b5][%mdl 32]} Rb8 {[%emt 0:01:54]} 18. Bxc6 {[%emt 0:00:31]} Ba7 {[%emt 0:06:12]} 19. Rd2 {[%emt 0:01:29]} h5 {[%emt 0:06:49]} 20. a4 {[%emt 0:03:20]} Bg4 {[%emt 0:08:25]} 21. Bb5 {[%emt 0:08:20]} Rbc8 {[%emt 0:35:38]} 22. Rdc2 {[%emt 0:01:57]} Rxc2 {[%emt 0:00:00]} 23. Rxc2 {[%emt 0:00:02]} Rd8 {[%emt 0:00:00]} 24. Kf1 {[%emt 0:01:08]} Rd1+ {[%emt 0:00:00]} 25. Ke2 {[%emt 0:01:01]} Rb1 {[%emt 0:00:00]} 26. h3 {[%emt 0:06:04]} Bxf3+ {[%emt 0:00:00]} 27. Kxf3 $16 {[%emt 0:00:20][%mdl 4096] Endgame. KRB-KRB} Bb8 {[%emt 0:00:00]} 28. Rd2 {[%emt 0:07:16]} Be5 {[%emt 0:00:00]} 29. Rd7 {[%emt 0:00:16]} Rxb2 {[%emt 0:00:00]} 30. Bc4 {[%emt 0:00:19]} Bc3 {[%emt 0:00:00]} 31. Rxf7+ {[%emt 0:01:09]} Kh6 {[%emt 0:00:00]} 32. h4 {[%emt 0:02:47]} Rb4 {[%emt 0:00:00][%csl LRa4,LRc4]} 33. Rc7 {[%emt 0:04:57] [#] And now Bg8 would win.} Be5 $1 {[%emt 0:00:00]} 34. Rc6 {[%emt 0:00:12]} Rxa4 {[%emt 0:00:00]} 35. Ke2 {[%emt 0:00:30]} Rb4 {[%emt 0:00:00]} 36. f4 {[%emt 0:18:51]} Bb2 {[%emt 0:00:00]} 37. Rc7 {[%emt 0:00:30][%cal Og2g4] g4! would kill now.} Rb8 38. Ra7 Bc3 39. e4 Rd8 40. Kf3 Rh8 41. g4 hxg4+ 42. Kxg4 Rh7 43. Ra8 Rc7 44. Be6 Kg7 45. h5 {Threatens to win with Rg8+.} gxh5+ 46. Kxh5 Rc5+ 47. f5 ({White should play} 47. Kg4 $14) 47... Rc7 $11 {The position is equal.} 48. Bd5 Kh7 49. Be6 Rg7 {...Be1 would now be deadly.} 50. Kh4 Be1+ 51. Kh3 Bc3 52. Bd5 Kh6 53. Rh8+ {Weighted Error Value: White=0.05 (flawless) /Black=0.05 (flawless) .  Mistake:       	White=1     	---        Inaccurate:     	White=3     	Black=3      OK:         	White=15    	Black=26     Best:        	White=3     	---        Strong:       	---       	Black=1} 1/2-1/2

[Event "3rd Rio Open 2024"]
[Site "Rio de Janeiro"]
[Date "2024.04.29"]
[Round "9.5"]
[White "Ribeiro, Matheus Mendes Domin"]
[Black "De Albuquerque, Ian Telek C."]
[Result "1-0"]
[ECO "A34"]
[WhiteElo "2228"]
[BlackElo "2134"]
[Annotator "TA"]
[PlyCount "51"]
[EventDate "2024.04.12"]
[EventType "swiss"]
[EventCountry "BRA"]
[SourceTitle "playchess.com"]
[Source "ChessBase"]
[SourceQuality "1"]
[TimeControl "5400+30"]

{[%evp 13,51,0,0,11,0,0,0,-20,-3,-2,-7,-4,0,-37,0,-46,-43,-51,-58,-55,-67,-79,-72,-66,-53,-100,-95,-79,-25,-22,469,470,568,573,945,932,1293,1291,29997,29998]} 1. c4 {[%emt 0:09:13]} c5 {[%emt 0:00:44]} 2. Nc3 {[%emt 0:00:17]} Nf6 {[%emt 0:00:09]} 3. Nf3 {[%emt 0:00:12]} Nc6 {[%emt 0:01:10]} 4. g3 {[%emt 0:00:27]} d5 {[%emt 0:00:05]} 5. cxd5 {[%emt 0:00:04]} Nxd5 {[%emt 0:00:07]} 6. Bg2 {[%emt 0:00:07]} Nc7 {[%emt 0:00:06]} 7. a3 {[%emt 0:00:04]} g6 {[%emt 0:01:25]} 8. h4 {[%emt 0:00:49]} Bg4 {[%emt 0:04:16]} 9. Qa4 {[%emt 0:08:12]} Qd7 {[%emt 0:13:15]} 10. O-O {[%emt 0:11:24] The position is equal.} Bg7 {[%emt 0:02:08]} 11. d3 {[%emt 0:02:16]} Rb8 {[%emt 0:34:46]} 12. Ne4 {[%emt 0:12:56]} b6 {[%emt 0:14:08]} 13. Bf4 {[%emt 0:07:43]} O-O {[%emt 0:07:47][%cal Ob8c8]} (13... Bxb2 $2 14. Rab1 Bd4 15. e3 $18) 14. Rfe1 {[%emt 0:13:58]} (14. Nfg5 $11) 14... Rbc8 $15 {[%emt 0:02:18]} (14... Bxb2 15. Rab1 Bg7 16. Nh2 $16 (16. Nxc5 bxc5 17. Bxc7 Bxf3 $11)) 15. Nc3 {[%emt 0:11:55]} Ne6 {[%emt 0:04:27]} 16. Be3 {[%emt 0:02:56]} Ned4 {[%emt 0:01:18]} 17. Nd2 {[%emt 0:04:11]} Rfd8 {[%emt 0:04:46][%cal Ob6b5]} 18. Rac1 {[%emt 0:00:16][%cal Ba1c1,Bc1c8,Bc8b8][%mdl 32]} b5 {[%emt 0:01:24]} 19. Qa6 {[%emt 0:02:32] [#]} (19. Qd1 $15 {might be stronger.}) 19... b4 $1 $17 {[%emt 0:00:49]} 20. axb4 {[%emt 0:01:43]} cxb4 {[%emt 0:01:18]} (20... Nxb4 $17 21. Qa5 Ndc2) 21. Nd5 $1 $11 {[%emt 0:02:35] Hoping for Bxd4.} Nb8 $2 {[%emt 0:01:27][%mdl 8192] [#] A mistake that costs the game.} ({Stronger than} 21... Nxe2+ 22. Rxe2 Bxe2 (22... Nb8 $2 23. Qxc8 Rxc8 24. Rxc8+ Qxc8 25. Nxe7+ Kf8 26. Nxc8 $18) 23. Rxc6 Rxc6 24. Qxc6 $18) (21... Kf8 $11 22. Nf4 e5 23. Bxc6 Rxc6 24. Rxc6 Nxc6 (24... Qxc6 25. Qa5 $11)) 22. Qxc8 $3 $18 {[%emt 0:00:59][%mdl 512]} Rxc8 {[%emt 0:00:23]} (22... Qxc8 23. Nxe7+) 23. Rxc8+ {[%emt 0:00:05]} (23. Nxb4 $2 {is the wrong capture.} Rxc1 (23... Nxe2+ $2 24. Kh2 $19) 24. Rxc1 Nxe2+ (24... Bxe2 $2 25. Rc5 $19) 25. Kh2 Nxc1 $19) 23... Bf8 {[%emt 0:00:12]} 24. Rxb8 {[%emt 0:00:15]} Nxe2+ {[%emt 0:02:04] [#]} 25. Rxe2 $1 {[%emt 0:00:44][%cal Oe3h6] White threatens Bh6! and mate.} Bxe2 {[%emt 0:00:03]} (25... Kg7 26. Re1) 26. Bh6 {[%emt 0:05:37] Weighted Error Value: White=0.12 (very precise) /Black=0.77.  Loses game:     	---       	Black=1      Mistake:       	White=2     	Black=1      Inaccurate:     	White=1     	Black=3      OK:         	White=4     	Black=5      Best:        	White=1     	---        Strong:       	White=1     	Black=1      Brilliant:      	White=1     	---} 1-0